bitfinex-derivatives/quotes_ETHF0:USTF0_20250505
["timestamp","ask_amount","ask_price","bid_price","bid_amount"]
[1746455181123,4.33426,1803.5,1803.4,45.64107]
[1746455181724,4.33426,1803.5,1803.4,44.532]
[1746455182423,1.94716,1803.5,1803.4,44.532]
[1746455182645,1.10901,1803.5,1803.4,48.00617]
[1746455182824,4.39826,1803.5,1803.4,48.00617]
[1746455183025,4.39826,1803.5,1803.4,46.8971]
[1746455183327,4.39826,1803.5,1803.4,48.00617]
[1746455184325,0.83815,1803.5,1803.4,48.00617]
[1746455184526,1.109,1803.6,1803.5,1.10901]
[1746455184726,1.94715,1803.6,1803.5,8.30341]
[1746455184921,1.94715,1803.6,1803.5,7.1944]
[1746455185122,1.94715,1803.6,1803.5,12.03541]
[1746455185532,1.94715,1803.6,1803.5,10.9264]
[1746455185933,1.94715,1803.6,1803.5,3.732]
[1746455186233,1.10901,1803.5,1803.4,41.90902]
[1746455186733,3.64639,1803.6,1803.5,1.10901]
[1746455186932,3.64639,1803.6,1803.5,3.66941]
[1746455186933,4.48454,1803.6,1803.5,3.66941]
[1746455187125,4.48454,1803.6,1803.5,7.40141]
[1746455187927,0.83815,1803.6,1803.5,7.40141]
[1746455188732,1.94709,1803.6,1803.5,7.40141]
[1746455188921,1.94709,1803.6,1803.5,6.2924]
[1746455189125,1.94709,1803.6,1803.5,7.40141]
[1746455189732,9.35345,1803.8,1803.5,6.2924]
[1746455189928,3.2078,1803.8,1803.7,1.10888]
[1746455190127,4.31653,1804.0,1803.9,1.10876]
[1746455190439,1.10876,1803.9,1803.8,2.4372]
[1746455190636,1.10876,1803.9,1803.7,3.732]
[1746455190637,1.94697,1803.8,1803.7,3.732]
[1746455190932,9.98777,1803.8,1803.7,3.732]
[1746455191128,14.98777,1803.8,1803.7,3.732]
[1746455191334,1.10901,1803.5,1803.4,40.8]
[1746455191528,1.94716,1803.5,1803.4,40.8]
[1746455191733,1.94716,1803.5,1803.4,41.90907]
[1746455192128,1.94716,1803.5,1803.4,45.64107]
[1746455192327,1.94716,1803.5,1803.4,44.532]
[1746455192524,6.72486,1803.5,1803.4,44.532]
[1746455192723,6.72486,1803.5,1803.4,45.64107]
[1746455193934,6.72486,1803.5,1803.4,44.532]
[1746455196134,6.72486,1803.5,1803.4,40.8]
[1746455200443,3.2078,1803.6,1803.5,1.10901]
[1746455200644,1.10884,1803.8,1803.7,1.10888]
[1746455200940,1.1088,1803.9,1803.8,1.10882]
[1746455201138,4.31656,1804.0,1803.9,1.10876]
[1746455202143,4.31656,1804.0,1803.9,4.84076]
[1746455202336,4.31656,1804.0,1803.9,7.26926]
[1746455202747,3.2078,1804.0,1803.9,7.26926]
[1746455202945,4.31641,1804.2,1804.1,1.10864]
[1746455203142,1.10864,1804.1,1804.0,5.95135]
[1746455203846,4.31642,1804.2,1804.1,1.10864]
[1746455204039,4.31642,1804.2,1804.1,5.90974]
[1746455204235,7.57925,1804.4,1804.3,1.10851]
[1746455204236,3.2078,1804.4,1804.3,1.10851]
[1746455204642,4.31625,1804.4,1804.3,41.90851]
[1746455205145,4.31625,1804.4,1804.3,45.64051]
[1746455206354,3.2078,1804.4,1804.3,45.64051]
[1746455206548,3.2078,1804.4,1804.3,50.64051]
[1746455207353,1.10841,1804.5,1804.4,1.10845]
[1746455207544,1.10841,1804.5,1804.4,8.66235]
[1746455207745,1.10838,1804.6,1804.5,1.10836]
[1746455207949,1.10832,1804.7,1804.6,1.1083]
[1746455208151,1.10832,1804.7,1804.6,3.6276]
[1746455208547,1.10832,1804.7,1804.6,44.4276]
[1746455209144,1.10824,1804.8,1804.7,1.10822]
[1746455209347,1.94639,1804.8,1804.7,6.16752]
[1746455209547,1.10824,1804.8,1804.7,6.16752]
[1746455209848,1.10824,1804.8,1804.7,46.96752]
[1746455210149,1.10824,1804.8,1804.7,50.69952]
[1746455210643,1.10824,1804.8,1804.7,49.5913]
[1746455210949,1.10824,1804.8,1804.7,44.532]
[1746455210950,10.15419,1804.8,1804.7,44.532]
[1746455211145,1.10839,1804.5,1804.4,4.8487]
[1746455211346,1.94654,1804.5,1804.4,5.95715]
[1746455211547,1.10837,1804.6,1804.5,1.10839]
[1746455211746,1.10837,1804.6,1804.5,46.78799]
[1746455211747,1.94652,1804.6,1804.5,46.78799]
[1746455211953,3.867,1804.8,1804.5,45.6796]
[1746455212147,1.94642,1804.7,1804.6,2.3541]
[1746455212549,1.10825,1804.8,1804.6,2.3541]
[1746455212742,2.5194,1805.0,1804.6,5.12489]
[1746455213050,0.83815,1804.9,1804.8,1.10815]
[1746455213251,1.94631,1804.9,1804.8,1.10815]
[1746455213745,1.10824,1804.8,1804.7,1.10823]
[1746455214147,1.10824,1804.8,1804.7,4.84023]
[1746455214651,1.10819,1804.9,1804.8,1.10817]
[1746455214959,1.94636,1804.8,1804.7,3.732]
[1746455215245,1.10827,1804.7,1804.6,2.487]
[1746455215452,1.94642,1804.7,1804.6,2.487]
[1746455215652,4.39782,1804.7,1804.6,2.487]
[1746455215847,1.10833,1804.6,1804.5,40.8]
[1746455216058,4.39788,1804.6,1804.5,40.8]
[1746455216246,9.27028,1804.6,1804.5,40.8]
[1746455216652,9.27028,1804.6,1804.5,41.90839]
[1746455216954,9.27028,1804.6,1804.5,40.8]
[1746455218452,3.21304667,1804.7,1804.6,1.10833]
[1746455218755,3.21304667,1804.7,1804.6,3.43983]
[1746455219056,0.00524667,1804.7,1804.6,3.43983]
[1746455220253,1.11351667,1804.7,1804.6,3.43983]
[1746455220557,1.11351667,1804.7,1804.6,2.3315]
[1746455220757,1.95166667,1804.7,1804.6,3.43983]
[1746455222059,4.05119667,1804.7,1804.5,44.532]
[1746455222355,1.10869,1804.1,1804.0,1.10865]
[1746455222661,1.10856,1804.3,1804.2,1.10853]
[1746455222851,1.94672,1804.2,1804.1,2.2903]
[1746455223049,1.94679,1804.1,1804.0,40.8]
[1746455223250,7.57269,1804.1,1804.0,40.8]
[1746455224056,4.36489,1804.1,1804.0,40.8]
[1746455226256,7.57269,1804.1,1804.0,40.8]
[1746455228357,4.36489,1804.1,1804.0,40.8]
[1746455228659,0.83815,1804.1,1804.0,41.9087]
[1746455228857,3.866,1804.3,1804.0,41.9087]
[1746455228858,2.4762,1804.3,1804.2,1.10857]
[1746455229053,5.8235,1804.4,1804.3,1.10851]
[1746455229260,1.10835,1804.6,1804.5,1.10839]
[1746455229555,1.10844,1804.5,1804.4,1.10844]
[1746455229758,2.3463,1804.6,1804.2,3.732]
[1746455229963,3.18445,1804.6,1804.2,3.732]
[1746455230151,1.10848,1804.4,1804.2,3.732]
[1746455230458,1.10847,1804.4,1804.3,1.10847]
[1746455230650,1.10845,1804.4,1804.2,3.732]
[1746455230853,3.45474,1804.5,1804.4,1.10845]
[1746455231057,1.10851,1804.3,1804.2,3.732]
[1746455231257,1.94666,1804.3,1804.2,3.732]
[1746455231459,1.94666,1804.3,1804.2,4.84057]
[1746455231751,0.83815,1804.3,1804.2,4.84057]
[1746455231952,1.10844,1804.5,1804.4,1.10842]
[1746455232157,1.10838,1804.6,1804.5,1.10839]
[1746455232755,6.64643667,1804.7,1804.6,1.10833]
[1746455232955,4.32133667,1804.7,1804.6,1.10833]
[1746455233358,1.10833,1804.6,1804.5,8.5121]
[1746455235161,1.10833,1804.6,1804.5,4.7801]
[1746455235664,1.10851,1804.3,1804.2,3.732]
[1746455235858,5.15446,1804.3,1804.2,3.732]
[1746455236055,1.94666,1804.3,1804.2,3.732]
[1746455236257,1.10864,1804.1,1804.0,40.8]
[1746455236457,1.94679,1804.1,1804.0,40.8]
[1746455236856,5.15459,1804.1,1804.0,40.8]
[1746455237055,7.65769,1804.1,1804.0,40.8]
[1746455238976,1.10894,1803.6,1803.5,2.2723]
[1746455240074,1.10894,1803.6,1803.4,2.3119]
[1746455240075,1.10901,1803.5,1803.4,2.3119]
[1746455240267,1.94716,1803.5,1803.4,6.0439]
[1746455240468,1.10901,1803.5,1803.4,46.8439]
[1746455244475,1.94716,1803.5,1803.4,44.532]
[1746455244677,5.15496,1803.5,1803.4,44.532]
[1746455244871,7.48506,1803.5,1803.4,44.532]
[1746455245081,16.34506,1803.5,1803.4,1.28921]
[1746455245276,1.10944,1802.8,1802.7,4.8226]
[1746455245879,7.0678,1803.2,1802.7,13.0304]
[1746455246077,1.10931,1803.0,1802.9,1.10934]
[1746455246477,1.10938,1802.9,1802.8,1.10939]
[1746455247078,1.10938,1802.9,1802.8,4.84139]
[1746455247280,1.10937,1803.0,1802.9,1.10936]
[1746455247484,1.94744,1803.1,1803.0,1.10931]
[1746455247886,1.10937,1803.0,1802.9,1.10935]
[1746455248286,1.10937,1803.0,1802.9,4.84135]
[1746455249284,1.10929,1803.1,1803.0,1.10927]
[1746455249479,1.94733,1803.3,1803.2,1.10914]
[1746455249680,1.10918,1803.3,1803.2,1.10914]
[1746455250176,1.10918,1803.3,1803.2,4.84114]
[1746455250588,1.10918,1803.3,1803.2,3.732]
[1746455250776,1.10918,1803.3,1803.2,4.84119]
[1746455250982,1.10912,1803.4,1803.3,1.10913]
[1746455251181,3.2078,1803.5,1803.4,1.10907]
[1746455251381,5.15501,1803.5,1803.4,1.10907]
[1746455251789,1.1091,1803.4,1803.3,1.10907]
[1746455251988,1.1091,1803.4,1803.3,3.57697]
[1746455252189,1.1091,1803.4,1803.3,7.30903]
[1746455252888,4.31684,1803.5,1803.4,1.10907]
[1746455253088,4.04595,1803.5,1803.4,3.42737]
[1746455253292,3.2078,1803.9,1803.5,2.77251]
[1746455253591,1.94697,1803.8,1803.7,1.10888]
[1746455253891,0.83815,1803.8,1803.7,3.42718]
[1746455254092,6.11115,1804.0,1803.9,1.10876]
[1746455254389,1.94691,1803.9,1803.8,3.42707]
[1746455254796,1.10876,1803.9,1803.8,3.42707]
[1746455255191,1.10876,1803.9,1803.8,7.15907]
[1746455255793,1.94691,1803.9,1803.8,6.0503]
[1746455256687,1.94691,1803.9,1803.8,3.732]
[1746455257490,5.15471,1803.9,1803.8,3.732]
[1746455257890,10.15471,1803.9,1803.8,3.732]
[1746455258288,1.10888,1803.7,1803.6,40.8]
[1746455258481,5.15483,1803.7,1803.6,40.8]
[1746455259195,7.47823,1803.7,1803.6,40.8]
[1746455261193,4.27043,1803.7,1803.6,40.8]
[1746455261593,7.47823,1803.7,1803.6,40.8]
[1746455261995,4.27043,1803.7,1803.6,43.2574]
[1746455263790,3.16155,1803.7,1803.6,44.36634]
[1746455263998,3.2078,1803.9,1803.8,1.10882]
[1746455264199,4.04595,1803.9,1803.8,4.84082]
[1746455264502,1.10875,1804.0,1803.9,1.10873]
[1746455264697,1.9469,1804.0,1803.9,2.3885]
[1746455264890,4.3223,1804.0,1803.9,2.3885]
[1746455265200,4.3223,1804.0,1803.9,6.1205]
[1746455265392,4.3223,1804.0,1803.9,3.732]
[1746455265393,6.7735,1804.0,1803.9,3.732]
[1746455267104,6.7735,1804.0,1803.9,4.84076]
[1746455267398,6.7735,1804.0,1803.9,7.22326]
[1746455267799,6.7735,1804.0,1803.9,6.1145]
[1746455268497,6.7735,1804.0,1803.9,7.22326]
[1746455268699,6.7735,1804.0,1803.9,6.1145]
[1746455270701,6.7735,1804.0,1803.9,3.732]
[1746455272107,1.10888,1803.7,1803.6,44.30961]
[1746455272312,1.94703,1803.7,1803.6,44.30961]
[1746455272502,1.10888,1803.7,1803.6,43.2007]
[1746455272800,1.94703,1803.7,1803.6,40.8]
[1746455273002,7.49353,1803.7,1803.6,40.8]
[1746455273196,9.86053,1803.7,1803.6,40.8]
[1746455273903,9.86053,1803.7,1803.6,43.1608]
[1746455275207,9.86053,1803.7,1803.6,40.8]
[1746455278512,18.71453,1803.7,1803.6,40.8]
[1746455279310,13.71453,1803.7,1803.6,40.8]
[1746455279607,13.71453,1803.7,1803.6,38.8]
[1746455282504,1.10913,1803.3,1803.2,4.8657]
[1746455282703,1.94728,1803.3,1803.2,4.8657]
[1746455282902,1.10913,1803.3,1803.2,4.8657]
[1746455283210,3.53173,1803.3,1803.2,49.3977]
[1746455283708,8.1591,1803.4,1803.3,1.10913]
[1746455283709,3.2078,1803.4,1803.3,1.10913]
[1746455283914,1.10888,1803.8,1803.7,1.10886]
[1746455284306,1.10888,1803.8,1803.7,41.90886]
[1746455284609,10.2635,1804.1,1803.7,40.8]
[1746455284804,1.10878,1803.9,1803.8,1.10878]
[1746455285211,1.10878,1803.9,1803.8,4.84078]
[1746455285517,1.10878,1803.9,1803.8,3.732]
[1746455285815,1.10878,1803.9,1803.8,4.84082]
[1746455286017,1.10878,1803.9,1803.8,3.732]
[1746455287217,1.10878,1803.9,1803.8,4.84082]
[1746455287517,1.10876,1803.9,1803.8,4.84076]
[1746455288315,5.15471,1803.9,1803.8,3.732]
[1746455288620,9.00871,1803.9,1803.8,3.732]
[1746455289009,13.81451,1803.9,1803.8,3.732]
[1746455289217,1.10882,1803.8,1803.7,40.8]
[1746455289519,4.41427,1803.8,1803.7,40.8]
[1746455294517,1.10908,1803.4,1803.3,1.10906]
[1746455294926,8.27867,1803.6,1803.2,2.4712]
[1746455295125,1.10909,1803.4,1803.3,4.84107]
[1746455295529,1.10909,1803.4,1803.3,45.64107]
[1746455295931,1.10909,1803.4,1803.3,44.532]
[1746455296122,5.15504,1803.4,1803.3,44.532]
[1746455296732,10.07744,1803.4,1803.3,44.532]
[1746455297134,10.07744,1803.4,1803.3,40.8]
[1746455297536,7.66254,1803.4,1803.3,40.8]
[1746455297740,1.10909,1803.4,1803.3,40.8]
[1746455298234,1.10909,1803.4,1803.3,44.532]
[1746455298738,1.10909,1803.4,1803.3,45.64113]
[1746455299233,1.10909,1803.4,1803.3,44.532]
[1746455299929,4.31689,1803.4,1803.3,44.532]
[1746455300131,5.15504,1803.4,1803.3,44.532]
[1746455300333,7.47194,1803.4,1803.3,44.532]
[1746455300532,9.83974,1803.4,1803.3,44.532]
[1746455301035,5.15504,1803.4,1803.3,44.532]
[1746455301335,5.15504,1803.4,1803.3,43.164]
[1746455302036,4.31689,1803.4,1803.3,44.27313]
[1746455302235,1.10909,1803.4,1803.3,46.896]
[1746455302432,1.10909,1803.4,1803.3,48.00513]
[1746455302937,1.10909,1803.4,1803.3,46.896]
[1746455303131,5.15504,1803.4,1803.3,49.3116]
[1746455303330,5.15504,1803.4,1803.3,44.532]
[1746455303728,7.54454,1803.4,1803.3,44.532]
[1746455304141,7.54454,1803.4,1803.3,40.8]
[1746455306043,1.10909,1803.4,1803.3,40.8]
[1746455306238,1.10909,1803.4,1803.3,45.64113]
[1746455306731,1.10909,1803.4,1803.3,48.10523]
[1746455306936,1.10909,1803.4,1803.3,46.9961]
[1746455307333,1.10909,1803.4,1803.3,48.10523]
[1746455309340,1.10905,1803.5,1803.4,1.10903]
[1746455309533,1.10905,1803.5,1803.4,6.01363]
[1746455309836,1.10905,1803.5,1803.4,4.9046]
[1746455310140,1.10905,1803.5,1803.4,8.6366]
[1746455310328,1.10905,1803.5,1803.4,9.74567]
[1746455310830,1.10905,1803.5,1803.4,8.6366]
[1746455311236,1.10905,1803.5,1803.4,9.74567]
[1746455312037,1.10905,1803.5,1803.4,8.6366]
[1746455312229,1.9472,1803.5,1803.4,8.6366]
[1746455312426,4.4288,1803.5,1803.4,8.6366]
[1746455312635,4.4288,1803.5,1803.4,3.732]
[1746455312942,6.9405,1803.5,1803.4,3.732]
[1746455313239,1.10907,1803.4,1803.3,43.2641]
[1746455313440,1.94722,1803.4,1803.3,43.2641]
[1746455314142,1.94722,1803.4,1803.3,46.9961]
[1746455315536,5.15502,1803.4,1803.3,49.3112]
[1746455315936,1.94722,1803.4,1803.3,50.42033]
[1746455316342,1.10907,1803.4,1803.3,49.3112]
[1746455316640,4.31687,1803.4,1803.3,49.3112]
[1746455316838,5.15502,1803.4,1803.3,49.3112]
[1746455318741,5.15502,1803.4,1803.3,50.42033]
[1746455318941,1.10903,1803.5,1803.4,1.10907]
[1746455319136,1.10903,1803.5,1803.4,9.72227]
[1746455319332,1.94718,1803.5,1803.4,8.6132]
[1746455319939,1.94718,1803.5,1803.4,3.732]
[1746455320138,4.48218,1803.5,1803.4,3.732]
[1746455320338,8.33018,1803.5,1803.4,3.732]
[1746455321141,1.10907,1803.4,1803.3,43.2641]
[1746455321345,7.69002,1803.4,1803.3,43.2641]
[1746455321639,7.69002,1803.4,1803.3,40.8]
[1746455321835,10.17702,1803.4,1803.3,40.8]
[1746455324147,9.06795,1803.4,1803.1,2.519]
[1746455324444,1.10931,1803.0,1802.9,4.9365]
[1746455324644,1.94746,1803.0,1802.9,4.9365]
[1746455324947,1.10931,1803.0,1802.9,4.9365]
[1746455325142,1.10931,1803.0,1802.8,2.3609]
[1746455325143,1.10937,1802.9,1802.8,2.3609]
[1746455325444,1.10944,1802.8,1802.7,2.4925]
[1746455325647,5.15539,1802.8,1802.7,43.2925]
[1746455325835,7.62909,1802.8,1802.7,43.2925]
[1746455326041,7.62909,1802.8,1802.7,40.8]
[1746455326240,7.62909,1802.8,1802.7,44.532]
[1746455327346,7.62909,1802.8,1802.7,43.2048]
[1746455328151,7.62909,1802.8,1802.7,44.532]
[1746455329151,7.62909,1802.8,1802.7,40.8]
[1746455331148,1.10944,1802.8,1802.7,47.0229]
[1746455331348,1.1534939,1802.8,1802.7,47.0229]
[1746455332154,4.3612939,1802.8,1802.7,47.0229]
[1746455332952,5.1994439,1802.8,1802.7,47.0229]
[1746455334651,5.23113872,1802.8,1802.7,47.0229]
[1746455336553,2.02333872,1802.8,1802.7,47.0229]
[1746455336952,1.18518872,1802.8,1802.7,47.0229]
[1746455337152,1.18518872,1802.8,1802.7,48.1324]
[1746455337348,0.07574872,1802.8,1802.7,53.1324]
[1746455338254,1.18518872,1802.8,1802.7,53.1324]
[1746455339449,1.18518872,1802.8,1802.7,48.1324]
[1746455343053,1.18518872,1802.8,1802.7,47.0229]
[1746455343351,2.02333872,1802.8,1802.7,47.0229]
[1746455343555,5.23113872,1802.8,1802.7,47.0229]
[1746455343950,7.68803872,1802.8,1802.7,47.0229]
[1746455344149,7.68803872,1802.8,1802.7,43.2909]
[1746455345254,7.68803872,1802.8,1802.7,40.8]
[1746455347456,7.74245369,1802.8,1802.7,40.8]
[1746455348053,7.74245369,1802.8,1802.7,43.2397]
[1746455348357,5.28555369,1802.8,1802.7,46.9717]
[1746455349659,7.78635369,1802.8,1802.7,46.9717]
[1746455350057,4.44740369,1802.8,1802.7,48.0812]
[1746455350356,0.13016369,1802.8,1802.7,48.0812]
[1746455351756,1.23960369,1802.8,1802.7,48.0812]
[1746455351959,0.13016369,1802.8,1802.7,48.0812]
[1746455352154,1.23960369,1802.8,1802.7,48.0812]
[1746455352452,5.28555369,1802.8,1802.7,46.9717]
[1746455353859,7.59375369,1802.8,1802.7,44.532]
[1746455354259,7.59375369,1802.8,1802.7,40.8]
[1746455358464,1.10956,1802.6,1802.5,2.504]
[1746455358757,1.10986,1802.2,1802.1,1.10986]
[1746455358958,1.10986,1802.2,1802.1,49.03946]
[1746455359461,1.24002369,1802.2,1802.1,49.03946]
[1746455359663,0.13016369,1802.2,1802.1,49.03946]
[1746455360263,0.13016369,1802.2,1802.1,54.03946]
[1746455360765,0.13016369,1802.2,1802.1,49.03946]
[1746455361265,1.23997369,1802.2,1802.1,49.03946]
[1746455361463,0.13016369,1802.2,1802.1,49.03946]
[1746455362067,1.23997369,1802.2,1802.1,49.03946]
[1746455362261,0.13016369,1802.2,1802.1,49.03946]
[1746455363566,1.10965,1802.5,1802.4,1.10968]
[1746455364163,1.10965,1802.5,1802.4,4.84168]
[1746455365169,6.0932,1802.5,1802.4,3.732]
[1746455365464,6.0932,1802.5,1802.4,4.84168]
[1746455365465,1.9478,1802.5,1802.4,4.84168]
[1746455365772,1.10965,1802.5,1802.4,4.84168]
[1746455367074,1.10947,1802.8,1802.7,1.10942]
[1746455368268,1.10944,1802.8,1802.7,4.84145]
[1746455368567,1.10942,1802.9,1802.8,1.10942]
[1746455369066,1.94757,1802.9,1802.8,1.10942]
[1746455369265,1.94757,1802.9,1802.8,4.84142]
[1746455369467,1.10942,1802.9,1802.8,4.84142]
[1746455369669,3.834,1803.0,1802.8,4.84142]
[1746455369670,1.10932,1803.1,1803.0,1.10931]
[1746455369869,1.10931,1803.0,1802.9,2.14704]
[1746455370170,1.10931,1803.0,1802.9,5.87904]
[1746455370568,1.10921,1803.2,1803.1,1.1092]
[1746455370765,3.2078,1803.4,1803.1,40.8]
[1746455370964,1.10919,1803.2,1803.1,41.90919]
[1746455371368,0.83815,1803.3,1803.2,1.10916]
[1746455371369,1.10918,1803.3,1803.2,1.10916]
[1746455371570,1.94733,1803.3,1803.2,1.10916]
[1746455371771,11.01734396,1803.6,1803.2,4.31696]
[1746455371974,0.83815,1803.4,1803.3,2.21983]
[1746455372180,0.83815,1803.4,1803.3,5.95183]
[1746455372366,12.12634396,1803.6,1803.5,1.10901]
[1746455372566,1.9472,1803.5,1803.4,1.10902]
[1746455373177,1.9472,1803.5,1803.4,4.84102]
[1746455373474,1.10905,1803.5,1803.4,4.84102]
[1746455374868,1.9472,1803.5,1803.4,4.84102]
[1746455375176,0.83815,1803.5,1803.4,4.84102]
[1746455375374,1.10898,1803.6,1803.5,1.10901]
[1746455376268,1.94713,1803.6,1803.5,4.84101]
[1746455377779,1.94713,1803.6,1803.5,3.732]
[1746455377968,3.61853,1803.6,1803.5,3.732]
[1746455378171,6.82633,1803.6,1803.5,3.732]
[1746455378368,7.92643,1803.6,1803.5,3.732]
[1746455378673,12.92643,1803.6,1803.5,3.732]
[1746455379079,1.10919,1803.2,1803.1,41.90923]
[1746455379280,5.15514,1803.2,1803.1,40.8]
[1746455379874,6.82654,1803.2,1803.1,40.8]
[1746455381484,6.82654,1803.2,1803.1,41.90925]
[1746455382491,6.82654,1803.2,1803.1,40.8]
[1746455382688,6.82654,1803.2,1803.1,41.90925]
[1746455382890,6.82654,1803.2,1803.1,40.8]
[1746455383084,6.82654,1803.2,1803.1,41.90925]
[1746455383384,6.82654,1803.2,1803.1,43.60835]
[1746455383585,5.71735,1803.2,1803.1,43.60835]
[1746455383888,6.82654,1803.2,1803.1,43.60835]
[1746455385084,6.82654,1803.2,1803.1,42.4991]
[1746455385694,6.82654,1803.2,1803.1,43.60835]
[1746455387692,4.31699,1803.2,1803.1,43.60835]
[1746455388287,2.8223,1803.3,1803.2,1.10919]
[1746455388487,1.10907,1803.5,1803.4,1.10901]
[1746455388987,3.67632,1803.5,1803.4,2.69241]
[1746455389188,3.67632,1803.5,1803.4,6.42441]
[1746455389989,1.10896,1803.6,1803.4,5.3154]
[1746455390195,1.10896,1803.6,1803.5,2.71781]
[1746455391194,1.10896,1803.6,1803.5,6.44981]
[1746455391895,7.03973,1803.7,1803.6,1.10894]
[1746455392096,7.03973,1803.7,1803.6,2.71774]
[1746455392295,7.87788,1803.7,1803.6,2.71774]
[1746455392799,3.2078,1803.7,1803.6,3.78684]
[1746455392995,3.2078,1803.7,1803.6,4.89964]
[1746455393191,1.10887,1803.8,1803.7,1.10888]
[1746455393390,1.10887,1803.8,1803.7,2.72428]
[1746455393391,1.94702,1803.8,1803.7,2.72428]
[1746455393591,4.8587,1803.9,1803.8,1.10882]
[1746455393900,4.31656,1803.9,1803.8,2.72422]
[1746455394099,4.31656,1803.9,1803.8,6.45622]
[1746455394485,3.2078,1803.9,1803.8,6.45622]
[1746455394691,1.10858,1804.3,1804.2,1.10854]
[1746455394892,3.86238,1804.3,1804.2,1.10854]
[1746455395092,3.86238,1804.3,1804.2,41.90854]
[1746455395093,4.70053,1804.3,1804.2,41.90854]
[1746455395501,4.70053,1804.3,1804.2,40.8]
[1746455395992,4.70053,1804.3,1804.2,41.90857]
[1746455396494,4.70053,1804.3,1804.2,40.8]
[1746455397202,0.83815,1804.3,1804.2,41.90857]
[1746455397501,0.83815,1804.3,1804.2,43.58107]
[1746455398194,0.83815,1804.3,1804.2,47.31307]
[1746455398500,1.94666,1804.3,1804.2,47.31307]
[1746455398698,0.83815,1804.3,1804.2,47.31307]
[1746455400797,1.94666,1804.3,1804.2,47.31307]
[1746455401098,1.94666,1804.3,1804.2,44.532]
[1746455401297,1.94666,1804.3,1804.2,41.90857]
[1746455401602,1.10839,1804.5,1804.4,1.10842]
[1746455402103,1.94654,1804.5,1804.4,1.10842]
[1746455402303,1.94654,1804.5,1804.4,3.77052]
[1746455402504,1.94654,1804.5,1804.4,2.6621]
[1746455402700,3.62254,1804.5,1804.4,2.6621]
[1746455403003,1.10851,1804.3,1804.2,40.8]
[1746455403304,1.94666,1804.3,1804.2,40.8]
[1746455403697,3.62266,1804.3,1804.2,40.8]
[1746455404204,3.62266,1804.3,1804.2,41.90857]
[1746455404505,3.62266,1804.3,1804.2,43.57747]
[1746455404707,3.62266,1804.3,1804.2,42.4689]
[1746455404905,7.44566,1804.3,1804.2,40.8]
[1746455405104,12.44566,1804.3,1804.2,40.8]
[1746455405406,7.44566,1804.3,1804.2,40.8]
[1746455406903,1.10876,1803.9,1803.8,1.5659]
[1746455407206,1.94696,1803.9,1803.8,1.10882]
[1746455407600,0.83815,1803.9,1803.8,2.67472]
[1746455407797,1.1087,1804.0,1803.9,1.10876]
[1746455408001,0.83815,1804.0,1803.9,43.47466]
[1746455408210,3.82341,1804.2,1804.1,1.10864]
[1746455408507,1.10864,1804.1,1804.0,2.5672]
[1746455408697,1.94685,1804.0,1803.9,45.11656]
[1746455408901,0.83815,1804.0,1803.9,45.11656]
[1746455409101,2.79298,1804.1,1804.0,1.1087]
[1746455409309,3.63113,1804.1,1804.0,2.7298]
[1746455409910,3.63113,1804.1,1804.0,1.6211]
[1746455410603,3.63113,1804.1,1804.0,2.7298]
[1746455411108,3.63113,1804.1,1804.0,1.6211]
[1746455411508,1.1087,1804.0,1803.9,40.8]
[1746455411809,0.83815,1804.1,1804.0,1.1087]
[1746455412009,4.31643,1804.2,1804.1,1.10864]
[1746455412202,4.31643,1804.2,1804.1,2.02634]
[1746455412400,3.2078,1804.2,1804.1,3.62124]
[1746455412616,3.74087,1804.4,1804.3,1.10851]
[1746455412915,1.10843,1804.5,1804.4,1.10845]
[1746455413111,1.10838,1804.6,1804.5,1.10839]
[1746455413305,1.10838,1804.6,1804.5,5.23389]
[1746455413604,1.10838,1804.6,1804.5,3.62099]
[1746455413802,2.09375,1804.8,1804.7,1.10827]
[1746455414010,1.10827,1804.7,1804.6,1.5949]
[1746455414209,1.94648,1804.6,1804.5,3.2078]
[1746455414613,1.94648,1804.6,1804.5,4.8869]
[1746455415224,1.10845,1804.4,1804.3,3.2078]
[1746455415411,0.83815,1804.4,1804.1,0.9071]
[1746455415611,1.94672,1804.2,1804.1,2.5862]
[1746455415912,1.1087,1804.0,1803.9,41.90874]
[1746455416219,1.94685,1804.0,1803.9,42.4791]
[1746455416421,1.6551,1804.1,1804.0,1.1087]
[1746455416623,2.76374,1804.1,1804.0,2.7878]
[1746455416920,2.76374,1804.1,1804.0,1.6791]
[1746455417120,3.60189,1804.1,1804.0,1.6791]
[1746455417418,1.1087,1804.0,1803.9,40.8]
[1746455417613,3.65605,1804.0,1803.9,43.58456]
[1746455418312,3.65605,1804.0,1803.9,42.4758]
[1746455418509,3.65605,1804.0,1803.9,40.8]
[1746455418710,15.67785,1804.0,1803.9,40.8]
[1746455418908,7.47005,1804.0,1803.9,40.8]
[1746455419419,7.47005,1804.0,1803.9,41.90876]
[1746455419718,7.47005,1804.0,1803.9,40.8]
[1746455419917,3.814,1804.0,1803.9,41.90876]
[1746455420113,3.814,1804.0,1803.9,43.58456]
[1746455420513,4.31639,1804.2,1804.0,1.10864]
[1746455420724,1.10857,1804.2,1804.1,3.67624]